[Event "Late-Titled-Tuesday-Blitz-June-04-2024"]
[Site "Chess.com"]
[Date "2024.06.04"]
[Round "4"]
[White "K_A_S_T_O_R"]
[Black "xakevicius91"]
[Result "1-0"]
[WhiteElo "2876"]
[BlackElo "2565"]
[TimeControl "180+1"]
[EndTime "14:38:40 PDT"]
[Termination "K_A_S_T_O_R won by resignation"]

1. e4 {[%clk 0:03:00.9]} 1... c5 {[%clk 0:02:59.6]} 2. Nf3 {[%clk 0:03:00.7]}
2... e6 {[%clk 0:03:00.2]} 3. d4 {[%clk 0:03:01]} 3... cxd4 {[%clk 0:03:01.1]}
4. Nxd4 {[%clk 0:03:01.4]} 4... Nc6 {[%clk 0:03:01.8]} 5. Nb5 {[%clk 0:03:00.8]}
5... d6 {[%clk 0:03:01.5]} 6. c4 {[%clk 0:03:01.1]} 6... Nf6 {[%clk 0:03:00.9]}
7. N1c3 {[%clk 0:02:59.7]} 7... a6 {[%clk 0:03:01.2]} 8. Na3 {[%clk 0:03:00.2]}
8... Be7 {[%clk 0:02:58.4]} 9. Be2 {[%clk 0:03:00.6]} 9... b6 {[%clk 0:02:58.3]}
10. O-O {[%clk 0:03:00.7]} 10... Bb7 {[%clk 0:02:58.8]} 11. Be3 {[%clk
0:03:01.2]} 11... Ne5 {[%clk 0:02:58.3]} 12. f3 {[%clk 0:03:00.9]} 12... Ned7
{[%clk 0:02:58.5]} 13. Rc1 {[%clk 0:03:01.3]} 13... O-O {[%clk 0:02:58.9]} 14.
Qd2 {[%clk 0:03:01.7]} 14... Qc7 {[%clk 0:02:58.9]} 15. Rfd1 {[%clk 0:03:02.2]}
15... Rfe8 {[%clk 0:02:56.9]} 16. Kh1 {[%clk 0:03:02.2]} 16... Rac8 {[%clk
0:02:56.5]} 17. Bf1 {[%clk 0:03:01.5]} 17... Qb8 {[%clk 0:02:53.6]} 18. Rc2
{[%clk 0:03:01.1]} 18... Ne5 {[%clk 0:02:41.1]} 19. Qf2 {[%clk 0:02:56.8]} 19...
Qa8 {[%clk 0:02:09.4]} 20. Bxb6 {[%clk 0:02:41.8]} 20... d5 {[%clk 0:02:09.2]}
21. Bd4 {[%clk 0:02:32.5]} 21... Nxc4 {[%clk 0:02:03.7]} 22. Bxc4 {[%clk
0:02:22.7]} 22... dxc4 {[%clk 0:02:04.6]} 23. Na4 {[%clk 0:02:21.9]} 23... Rcd8
{[%clk 0:01:52]} 24. Nxc4 {[%clk 0:02:16.4]} 24... e5 {[%clk 0:01:11.3]} 25.
Nxe5 {[%clk 0:02:11.1]} 25... Bd6 {[%clk 0:00:55.1]} 26. Nb6 {[%clk 0:01:56.5]}
26... Qb8 {[%clk 0:00:49.6]} 27. Nec4 {[%clk 0:01:49.5]} 27... Bxh2 {[%clk
0:00:42.7]} 28. e5 {[%clk 0:01:49.7]} 28... Bxe5 {[%clk 0:00:38.5]} 29. Nxe5
{[%clk 0:01:48.3]} 29... Rxe5 {[%clk 0:00:38.2]} 30. Rcd2 {[%clk 0:01:32.1]}
30... Rh5+ {[%clk 0:00:37.7]} 31. Kg1 {[%clk 0:01:32.7]} 31... Qh2+ {[%clk
0:00:36.2]} 32. Kf1 {[%clk 0:01:32.9]} 32... Re8 {[%clk 0:00:24.2]} 33. Bxf6
{[%clk 0:01:29.7]} 33... gxf6 {[%clk 0:00:20.1]} 34. Rd8 {[%clk 0:01:28.4]}
34... Rxd8 {[%clk 0:00:16.6]} 35. Rxd8+ {[%clk 0:01:28.1]} 35... Kg7 {[%clk
0:00:17.5]} 36. Nc4 {[%clk 0:01:20.6]} 36... Qh1+ {[%clk 0:00:15.2]} 37. Qg1
{[%clk 0:01:20.8]} 37... Qh4 {[%clk 0:00:15.2]} 38. b3 {[%clk 0:01:20.6]} 38...
Qf4 {[%clk 0:00:08.2]} 39. Rd1 {[%clk 0:01:19.5]} 39... Qh6 {[%clk 0:00:04]} 40.
Ke2 {[%clk 0:01:15.7]} 40... Bc8 {[%clk 0:00:04.4]} 41. Qe3 {[%clk 0:01:15.2]}
41... Qg6 {[%clk 0:00:04.4]} 42. Kf2 {[%clk 0:01:15.5]} 42... Be6 {[%clk
0:00:04.3]} 43. Rg1 {[%clk 0:01:11.5]} 43... Rg5 {[%clk 0:00:04.4]} 44. Nd2
{[%clk 0:01:08]} 44... Re5 {[%clk 0:00:04.3]} 45. Ne4 {[%clk 0:01:05.2]} 45...
Bf5 {[%clk 0:00:04.6]} 46. Re1 {[%clk 0:01:03.4]} 46... Bxe4 {[%clk 0:00:04.8]}
47. fxe4 {[%clk 0:01:04.3]} 47... h5 {[%clk 0:00:03.9]} 48. Qf4 {[%clk
0:01:02.9]} 48... a5 {[%clk 0:00:04.4]} 49. g3 {[%clk 0:01:03.1]} 49... Rg5
{[%clk 0:00:04.7]} 50. Re3 {[%clk 0:01:02.9]} 50... Re5 {[%clk 0:00:05]} 51. Kg2
{[%clk 0:01:00.4]} 51... Rg5 {[%clk 0:00:05.2]} 52. Kh2 {[%clk 0:01:00.7]} 52...
Rg4 {[%clk 0:00:05.5]} 53. Qf5 {[%clk 0:01:00.1]} 53... Qh6 {[%clk 0:00:06]} 54.
Rf3 {[%clk 0:00:59.8]} 54... Rg5 {[%clk 0:00:06.2]} 55. Qf4 {[%clk 0:00:59.6]}
55... Rg4 {[%clk 0:00:06.6]} 56. Qxh6+ {[%clk 0:00:59]} 56... Kxh6 {[%clk
0:00:07.5]} 57. Rxf6+ {[%clk 0:00:59.4]} 57... Kg7 {[%clk 0:00:08]} 58. Rf4
{[%clk 0:00:59.5]} 58... Rg5 {[%clk 0:00:06.1]} 59. Rf5 {[%clk 0:00:59.4]} 59...
Rg4 {[%clk 0:00:05.7]} 60. Rxh5 {[%clk 0:00:59.6]} 60... Rxe4 {[%clk 0:00:05.1]}
61. Rxa5 {[%clk 0:00:59.5]} 61... Re2+ {[%clk 0:00:05.5]} 62. Kh3 {[%clk
0:00:59.9]} 62... Rb2 {[%clk 0:00:06.4]} 63. Kg4 {[%clk 0:00:59.9]} 1-0

[Event "Late-Titled-Tuesday-Blitz-June-04-2024"]
[Site "Chess.com"]
[Date "2024.06.04"]
[Round "4"]
[White "margarita_2703"]
[Black "shirovin"]
[Result "1-0"]
[WhiteElo "2278"]
[BlackElo "2091"]
[TimeControl "180+1"]
[EndTime "14:38:41 PDT"]
[Termination "margarita_2703 won by checkmate"]

1. e4 {[%clk 0:03:00.9]} 1... Nf6 {[%clk 0:02:58.1]} 2. e5 {[%clk 0:02:18.3]}
2... Nd5 {[%clk 0:02:55.3]} 3. Nc3 {[%clk 0:02:18.4]} 3... Nxc3 {[%clk
0:02:49.8]} 4. bxc3 {[%clk 0:02:19.3]} 4... d6 {[%clk 0:02:47.3]} 5. f4 {[%clk
0:02:19.2]} 5... Nc6 {[%clk 0:02:38.1]} 6. d4 {[%clk 0:02:10.6]} 6... dxe5
{[%clk 0:02:31.7]} 7. fxe5 {[%clk 0:02:11.5]} 7... Bf5 {[%clk 0:02:31.3]} 8. Nf3
{[%clk 0:02:09.1]} 8... e6 {[%clk 0:02:30.7]} 9. Bd3 {[%clk 0:01:56]} 9... Bxd3
{[%clk 0:02:29.2]} 10. Qxd3 {[%clk 0:01:56.9]} 10... Be7 {[%clk 0:02:28.8]} 11.
O-O {[%clk 0:01:46.9]} 11... O-O {[%clk 0:02:12.4]} 12. Rb1 {[%clk 0:01:43.5]}
12... Na5 {[%clk 0:02:09.3]} 13. Nd2 {[%clk 0:01:29.9]} 13... b6 {[%clk
0:02:07.1]} 14. Nb3 {[%clk 0:01:30.1]} 14... Nb7 {[%clk 0:01:59.8]} 15. Qg3
{[%clk 0:01:29.4]} 15... Re8 {[%clk 0:01:54.6]} 16. Bh6 {[%clk 0:01:29.4]} 16...
Bf8 {[%clk 0:01:54]} 17. Rbe1 {[%clk 0:01:27.9]} 17... c5 {[%clk 0:01:39.2]} 18.
Re4 {[%clk 0:01:03]} 18... g6 {[%clk 0:01:34.3]} 19. Bg5 {[%clk 0:00:53.8]}
19... Be7 {[%clk 0:01:33.3]} 20. Be3 {[%clk 0:00:23]} 20... cxd4 {[%clk
0:01:29.6]} 21. cxd4 {[%clk 0:00:23.9]} 21... Bf8 {[%clk 0:00:59.8]} 22. Ref4
{[%clk 0:00:20.2]} 22... Qd7 {[%clk 0:00:58.9]} 23. Rxf7 {[%clk 0:00:17.4]}
23... Qxf7 {[%clk 0:00:58]} 24. Rxf7 {[%clk 0:00:18.3]} 24... Kxf7 {[%clk
0:00:57.9]} 25. Qf3+ {[%clk 0:00:18.8]} 25... Kg8 {[%clk 0:00:50.9]} 26. Qxb7
{[%clk 0:00:19.7]} 26... Rac8 {[%clk 0:00:41.8]} 27. Qe4 {[%clk 0:00:14.2]}
27... Rc3 {[%clk 0:00:36.1]} 28. Bg5 {[%clk 0:00:06.3]} 28... Rec8 {[%clk
0:00:31.4]} 29. d5 {[%clk 0:00:06.5]} 29... R3c4 {[%clk 0:00:22.9]} 30. Nd4
{[%clk 0:00:06.1]} 30... Bc5 {[%clk 0:00:20.6]} 31. Be3 {[%clk 0:00:06.4]} 31...
Bxd4 {[%clk 0:00:20]} 32. Bxd4 {[%clk 0:00:07.3]} 32... Rxc2 {[%clk 0:00:18]}
33. dxe6 {[%clk 0:00:07.6]} 33... Rc1+ {[%clk 0:00:16.9]} 34. Kf2 {[%clk
0:00:07.9]} 34... R8c2+ {[%clk 0:00:16.2]} 35. Kg3 {[%clk 0:00:08]} 35... Rd1
{[%clk 0:00:14.8]} 36. e7 {[%clk 0:00:08]} 36... Kf7 {[%clk 0:00:14.1]} 37. Qd5+
{[%clk 0:00:08]} 37... Kxe7 {[%clk 0:00:13.3]} 38. Qd6+ {[%clk 0:00:08.5]} 38...
Ke8 {[%clk 0:00:13]} 39. e6 {[%clk 0:00:08.1]} 39... Rd3+ {[%clk 0:00:11.6]} 40.
Kh4 {[%clk 0:00:08.5]} 40... Rc4 {[%clk 0:00:10.2]} 41. Qd7+ {[%clk 0:00:08.2]}
41... Kf8 {[%clk 0:00:03.4]} 42. Qf7# {[%clk 0:00:09.1]} 1-0

[Event "Late-Titled-Tuesday-Blitz-June-04-2024"]
[Site "Chess.com"]
[Date "2024.06.04"]
[Round "4"]
[White "Emp3rador"]
[Black "andrejljepic"]
[Result "0-1"]
[WhiteElo "2616"]
[BlackElo "2423"]
[TimeControl "180+1"]
[EndTime "14:38:44 PDT"]
[Termination "andrejljepic won on time"]

1. e4 {[%clk 0:03:00.9]} 1... c5 {[%clk 0:02:59.3]} 2. Nf3 {[%clk 0:03:01]} 2...
g6 {[%clk 0:02:58.8]} 3. c4 {[%clk 0:02:59.5]} 3... Bg7 {[%clk 0:02:58.5]} 4. d4
{[%clk 0:02:59.7]} 4... cxd4 {[%clk 0:02:59.4]} 5. Nxd4 {[%clk 0:03:00.3]} 5...
Nc6 {[%clk 0:03:00.1]} 6. Be3 {[%clk 0:03:00.4]} 6... Nf6 {[%clk 0:03:00.6]} 7.
Nc3 {[%clk 0:03:00.5]} 7... Ng4 {[%clk 0:03:01.1]} 8. Qxg4 {[%clk 0:02:59]} 8...
Nxd4 {[%clk 0:03:01.4]} 9. Qd1 {[%clk 0:02:58]} 9... Ne6 {[%clk 0:03:01.9]} 10.
Qd2 {[%clk 0:02:57.2]} 10... Qa5 {[%clk 0:03:01.6]} 11. Rc1 {[%clk 0:02:51.2]}
11... b6 {[%clk 0:03:01.3]} 12. Be2 {[%clk 0:02:51]} 12... Bb7 {[%clk
0:02:50.9]} 13. f3 {[%clk 0:02:50.9]} 13... g5 {[%clk 0:02:46.5]} 14. O-O {[%clk
0:02:46.9]} 14... Be5 {[%clk 0:02:46.6]} 15. Rfd1 {[%clk 0:02:40.9]} 15... Bf4
{[%clk 0:02:46.9]} 16. Qxd7+ {[%clk 0:02:36.7]} 16... Kf8 {[%clk 0:02:38.6]} 17.
Bxf4 {[%clk 0:02:35.1]} 17... Qc5+ {[%clk 0:02:26.2]} 18. Kf1 {[%clk 0:02:33]}
18... Bc8 {[%clk 0:01:49.6]} 19. Qd5 {[%clk 0:02:04.6]} 19... Qxd5 {[%clk
0:01:49.4]} 20. cxd5 {[%clk 0:01:55.4]} 20... Nxf4 {[%clk 0:01:49.7]} 21. Bb5
{[%clk 0:01:51]} 21... Kg7 {[%clk 0:01:40.3]} 22. d6 {[%clk 0:01:44.4]} 22...
exd6 {[%clk 0:01:38.4]} 23. Rxd6 {[%clk 0:01:43.6]} 23... Be6 {[%clk 0:01:39.1]}
24. Bc6 {[%clk 0:01:30.6]} 24... Rac8 {[%clk 0:01:35.4]} 25. Nd5 {[%clk
0:01:26.2]} 25... Nd3 {[%clk 0:01:17.3]} 26. Rc2 {[%clk 0:01:13.9]} 26... Ne5
{[%clk 0:01:14.1]} 27. Ba4 {[%clk 0:01:07.6]} 27... Rxc2 {[%clk 0:01:10.3]} 28.
Bxc2 {[%clk 0:01:06.9]} 28... Rc8 {[%clk 0:01:11.2]} 29. Ne3 {[%clk 0:00:59.6]}
29... h5 {[%clk 0:00:53.4]} 30. a3 {[%clk 0:00:53.3]} 30... h4 {[%clk
0:00:52.8]} 31. Kf2 {[%clk 0:00:50.5]} 31... Ng6 {[%clk 0:00:43.9]} 32. g3
{[%clk 0:00:48]} 32... hxg3+ {[%clk 0:00:43.9]} 33. hxg3 {[%clk 0:00:48.9]}
33... Kf6 {[%clk 0:00:43.9]} 34. Ba4 {[%clk 0:00:39.5]} 34... Ke7 {[%clk
0:00:39.1]} 35. Rc6 {[%clk 0:00:30.5]} 35... Rd8 {[%clk 0:00:32.2]} 36. Ke2
{[%clk 0:00:29.3]} 36... Rh8 {[%clk 0:00:30.1]} 37. Rc7+ {[%clk 0:00:25.1]}
37... Kf6 {[%clk 0:00:29.6]} 38. Bc2 {[%clk 0:00:15.9]} 38... Rh2+ {[%clk
0:00:27.4]} 39. Kd1 {[%clk 0:00:16.2]} 39... Rf2 {[%clk 0:00:23.7]} 40. Rxa7
{[%clk 0:00:06.5]} 40... Rxf3 {[%clk 0:00:23.5]} 41. Kd2 {[%clk 0:00:06.8]}
41... Rxg3 {[%clk 0:00:22.8]} 42. Rb7 {[%clk 0:00:06.6]} 42... Ne5 {[%clk
0:00:22.2]} 43. Rxb6 {[%clk 0:00:03.7]} 43... g4 {[%clk 0:00:14.1]} 0-1

[Event "Late-Titled-Tuesday-Blitz-June-04-2024"]
[Site "Chess.com"]
[Date "2024.06.04"]
[Round "4"]
[White "EsmeraldasAnderson03"]
[Black "djano"]
[Result "1-0"]
[WhiteElo "2455"]
[BlackElo "2605"]
[TimeControl "180+1"]
[EndTime "14:38:50 PDT"]
[Termination "EsmeraldasAnderson03 won by resignation"]

1. d4 {[%clk 0:02:57.2]} 1... Nf6 {[%clk 0:02:59.6]} 2. c4 {[%clk 0:02:56.4]}
2... g6 {[%clk 0:02:59.6]} 3. Nc3 {[%clk 0:02:56.7]} 3... Bg7 {[%clk 0:03:00.2]}
4. e4 {[%clk 0:02:57.2]} 4... d6 {[%clk 0:03:00.8]} 5. Be2 {[%clk 0:02:57.8]}
5... O-O {[%clk 0:03:00.7]} 6. Be3 {[%clk 0:02:58.1]} 6... Nc6 {[%clk
0:02:59.9]} 7. d5 {[%clk 0:02:58.2]} 7... Ne5 {[%clk 0:02:59.7]} 8. h3 {[%clk
0:02:58.8]} 8... c5 {[%clk 0:02:58.9]} 9. f4 {[%clk 0:02:58.9]} 9... Ned7 {[%clk
0:02:59.2]} 10. Nf3 {[%clk 0:02:59.6]} 10... a6 {[%clk 0:02:56]} 11. O-O {[%clk
0:02:59.4]} 11... b5 {[%clk 0:02:54.6]} 12. cxb5 {[%clk 0:02:59.6]} 12... axb5
{[%clk 0:02:55.5]} 13. Bxb5 {[%clk 0:02:59.9]} 13... Rb8 {[%clk 0:02:56]} 14. a4
{[%clk 0:02:57.6]} 14... Ne8 {[%clk 0:02:55.7]} 15. Qd2 {[%clk 0:02:50.9]} 15...
Nc7 {[%clk 0:02:55.4]} 16. Bc6 {[%clk 0:02:46.4]} 16... Ba6 {[%clk 0:02:52.7]}
17. Rfe1 {[%clk 0:02:45.2]} 17... Rb4 {[%clk 0:02:46.9]} 18. e5 {[%clk
0:02:39.9]} 18... Nb8 {[%clk 0:02:40.6]} 19. a5 {[%clk 0:02:07.3]} 19... dxe5
{[%clk 0:02:10.2]} 20. fxe5 {[%clk 0:02:02.6]} 20... Nxc6 {[%clk 0:02:00.8]} 21.
Bxc5 {[%clk 0:01:47.3]} 21... Qb8 {[%clk 0:01:31.5]} 22. dxc6 {[%clk 0:01:42.5]}
22... Rxb2 {[%clk 0:01:31.7]} 23. Qe3 {[%clk 0:01:32.8]} 23... Re8 {[%clk
0:01:20.6]} 24. Bb6 {[%clk 0:01:29.8]} 24... Ne6 {[%clk 0:01:15.5]} 25. Nd5
{[%clk 0:01:13.4]} 25... Qc8 {[%clk 0:01:00.3]} 26. Rac1 {[%clk 0:01:07.4]}
26... g5 {[%clk 0:00:45.3]} 27. Red1 {[%clk 0:01:03.1]} 27... Bh6 {[%clk
0:00:40.4]} 28. Qc3 {[%clk 0:00:57]} 28... Re2 {[%clk 0:00:35.2]} 29. Nd4 {[%clk
0:00:51.7]} 29... Nxd4 {[%clk 0:00:26.2]} 30. Rxd4 {[%clk 0:00:52.6]} 30... Qf5
{[%clk 0:00:22]} 31. Rg4 {[%clk 0:00:38.2]} 31... Rxe5 {[%clk 0:00:11.8]} 32.
Nc7 {[%clk 0:00:31.2]} 32... Rc8 {[%clk 0:00:10.5]} 33. Nxa6 {[%clk 0:00:29.9]}
33... Bg7 {[%clk 0:00:11]} 34. Qc2 {[%clk 0:00:27.9]} 34... Qe6 {[%clk
0:00:09.2]} 35. Qd2 {[%clk 0:00:22.9]} 35... h6 {[%clk 0:00:05.1]} 36. c7 {[%clk
0:00:22.6]} 36... Rd5 {[%clk 0:00:05.4]} 37. Qe1 {[%clk 0:00:18.1]} 37... Qd7
{[%clk 0:00:04.3]} 38. Nc5 {[%clk 0:00:12.6]} 38... Qb5 {[%clk 0:00:03.4]} 39.
Re4 {[%clk 0:00:12.1]} 39... e5 {[%clk 0:00:03.4]} 40. Qe2 {[%clk 0:00:10.2]}
40... Qe8 {[%clk 0:00:02.5]} 41. Qc4 {[%clk 0:00:10.4]} 41... Rd4 {[%clk
0:00:01.5]} 42. Rxd4 {[%clk 0:00:10]} 42... exd4 {[%clk 0:00:02.4]} 43. Nb7
{[%clk 0:00:10]} 43... Qe3+ {[%clk 0:00:02.9]} 44. Kh1 {[%clk 0:00:10.5]} 44...
d3 {[%clk 0:00:03.5]} 45. Bxe3 {[%clk 0:00:08.6]} 45... d2 {[%clk 0:00:03.9]}
46. Bxd2 {[%clk 0:00:09]} 1-0

[Event "Late-Titled-Tuesday-Blitz-June-04-2024"]
[Site "Chess.com"]
[Date "2024.06.04"]
[Round "4"]
[White "ural58"]
[Black "KChor05"]
[Result "0-1"]
[WhiteElo "2429"]
[BlackElo "2641"]
[TimeControl "180+1"]
[EndTime "14:38:51 PDT"]
[Termination "KChor05 won by resignation"]

1. e4 {[%clk 0:02:55.4]} 1... c5 {[%clk 0:02:58.9]} 2. b3 {[%clk 0:02:00.9]}
2... Nf6 {[%clk 0:02:57.1]} 3. e5 {[%clk 0:02:00.1]} 3... Nd5 {[%clk 0:02:57.4]}
4. Nc3 {[%clk 0:01:59.8]} 4... Nb6 {[%clk 0:02:51.4]} 5. d4 {[%clk 0:01:58.6]}
5... cxd4 {[%clk 0:02:47]} 6. Qxd4 {[%clk 0:01:58.4]} 6... Nc6 {[%clk
0:02:46.5]} 7. Qe3 {[%clk 0:01:58.2]} 7... e6 {[%clk 0:02:39.7]} 8. Bb2 {[%clk
0:01:56.6]} 8... Bb4 {[%clk 0:02:20.9]} 9. O-O-O {[%clk 0:01:55.2]} 9... O-O
{[%clk 0:02:17.7]} 10. a3 {[%clk 0:01:54.3]} 10... Be7 {[%clk 0:02:13]} 11. Nf3
{[%clk 0:01:53.1]} 11... f5 {[%clk 0:02:08.7]} 12. h4 {[%clk 0:01:50.4]} 12...
Qe8 {[%clk 0:02:02.2]} 13. h5 {[%clk 0:01:48.6]} 13... Rb8 {[%clk 0:01:38.6]}
14. g3 {[%clk 0:01:47]} 14... Na8 {[%clk 0:01:35.7]} 15. Nd4 {[%clk 0:01:41.6]}
15... Nxd4 {[%clk 0:01:31.2]} 16. Qxd4 {[%clk 0:01:41]} 16... b6 {[%clk
0:01:29.3]} 17. Bg2 {[%clk 0:01:37.4]} 17... Bc5 {[%clk 0:01:27.3]} 18. Qd2
{[%clk 0:01:36.2]} 18... Nc7 {[%clk 0:01:26.3]} 19. f4 {[%clk 0:01:34.2]} 19...
Rf7 {[%clk 0:01:20.9]} 20. Kb1 {[%clk 0:01:33.2]} 20... Bb7 {[%clk 0:01:19.9]}
21. Bxb7 {[%clk 0:01:32.3]} 21... Rxb7 {[%clk 0:01:20.8]} 22. Nb5 {[%clk
0:01:28.4]} 22... Nxb5 {[%clk 0:01:18.1]} 23. Qg2 {[%clk 0:01:18.6]} 23... Rb8
{[%clk 0:01:00]} 24. b4 {[%clk 0:01:16.8]} 24... Bf8 {[%clk 0:00:58.6]} 25. c4
{[%clk 0:01:15.8]} 25... Nc7 {[%clk 0:00:57.3]} 26. g4 {[%clk 0:01:14.9]} 26...
fxg4 {[%clk 0:00:52.4]} 27. Qxg4 {[%clk 0:01:14.5]} 27... Rf5 {[%clk 0:00:52.4]}
28. Bd4 {[%clk 0:01:07.6]} 28... Qf7 {[%clk 0:00:46.9]} 29. Be3 {[%clk
0:01:07.2]} 29... Rd8 {[%clk 0:00:45.2]} 30. Rd3 {[%clk 0:01:04.5]} 30... d5
{[%clk 0:00:42]} 31. exd6 {[%clk 0:01:03.4]} 31... Rxd6 {[%clk 0:00:40.7]} 32.
Rc3 {[%clk 0:00:49.4]} 32... Qf6 {[%clk 0:00:36.3]} 33. Rhc1 {[%clk 0:00:44.1]}
33... Rd7 {[%clk 0:00:34.9]} 34. Ka2 {[%clk 0:00:42.8]} 34... e5 {[%clk
0:00:28.5]} 35. fxe5 {[%clk 0:00:40.1]} 35... Qxe5 {[%clk 0:00:27.9]} 36. Kb3
{[%clk 0:00:34.7]} 36... Rff7 {[%clk 0:00:26.3]} 37. R1c2 {[%clk 0:00:29.5]}
37... Ne6 {[%clk 0:00:26.1]} 38. h6 {[%clk 0:00:28.1]} 38... Nd4+ {[%clk
0:00:25.2]} 39. Bxd4 {[%clk 0:00:26.2]} 39... Rxd4 {[%clk 0:00:26.1]} 40. Qc8
{[%clk 0:00:23.1]} 40... g6 {[%clk 0:00:25.5]} 41. c5 {[%clk 0:00:21.3]} 41...
bxc5 {[%clk 0:00:23.3]} 42. Rxc5 {[%clk 0:00:20.2]} 42... Rd3+ {[%clk
0:00:20.6]} 43. Ka4 {[%clk 0:00:19.6]} 43... Qf6 {[%clk 0:00:18.6]} 44. Re2
{[%clk 0:00:13.8]} 44... Rd8 {[%clk 0:00:18.1]} 45. Qh3 {[%clk 0:00:09.9]} 45...
Bxc5 {[%clk 0:00:16.1]} 0-1

[Event "Late-Titled-Tuesday-Blitz-June-04-2024"]
[Site "Chess.com"]
[Date "2024.06.04"]
[Round "4"]
[White "jinxy2009"]
[Black "OIAM03"]
[Result "1-0"]
[WhiteElo "2262"]
[BlackElo "2036"]
[TimeControl "180+1"]
[EndTime "14:38:51 PDT"]
[Termination "jinxy2009 won on time"]

1. c4 {[%clk 0:02:58.8]} 1... Nf6 {[%clk 0:02:58.4]} 2. Nf3 {[%clk 0:02:58.1]}
2... g6 {[%clk 0:02:57.2]} 3. g3 {[%clk 0:02:57.6]} 3... Bg7 {[%clk 0:02:56.7]}
4. Bg2 {[%clk 0:02:57.8]} 4... O-O {[%clk 0:02:56.6]} 5. O-O {[%clk 0:02:57.8]}
5... c6 {[%clk 0:02:56.4]} 6. d4 {[%clk 0:02:51.1]} 6... d5 {[%clk 0:02:56.1]}
7. Nc3 {[%clk 0:02:51.2]} 7... Ne4 {[%clk 0:02:48.3]} 8. cxd5 {[%clk 0:02:45.7]}
8... Nxc3 {[%clk 0:02:47.6]} 9. bxc3 {[%clk 0:02:43.7]} 9... cxd5 {[%clk
0:02:47.5]} 10. Bf4 {[%clk 0:02:42]} 10... Nc6 {[%clk 0:02:46.8]} 11. Rc1 {[%clk
0:02:31.6]} 11... Re8 {[%clk 0:02:30]} 12. c4 {[%clk 0:02:28.7]} 12... dxc4
{[%clk 0:02:16.4]} 13. d5 {[%clk 0:02:26.4]} 13... Nb4 {[%clk 0:02:05.7]} 14.
Rxc4 {[%clk 0:02:22.8]} 14... Nxd5 {[%clk 0:02:01.7]} 15. Be5 {[%clk 0:02:01.3]}
15... f6 {[%clk 0:01:49.2]} 16. Bb2 {[%clk 0:01:41.5]} 16... Be6 {[%clk
0:01:46.1]} 17. Qc2 {[%clk 0:00:59.1]} 17... Rc8 {[%clk 0:01:19]} 18. Nd4 {[%clk
0:00:57]} 18... Bf7 {[%clk 0:01:12.6]} 19. Rxc8 {[%clk 0:00:32.5]} 19... Qxc8
{[%clk 0:01:11.9]} 20. Rc1 {[%clk 0:00:32.6]} 20... Qxc2 {[%clk 0:01:08]} 21.
Rxc2 {[%clk 0:00:33.5]} 21... Nb4 {[%clk 0:01:07.6]} 22. Rc7 {[%clk 0:00:32.4]}
22... Nxa2 {[%clk 0:00:55.1]} 23. Rxb7 {[%clk 0:00:31.1]} 23... a5 {[%clk
0:00:54.4]} 24. Nc6 {[%clk 0:00:22.5]} 24... a4 {[%clk 0:00:43.6]} 25. Nxe7+
{[%clk 0:00:21.6]} 25... Kh8 {[%clk 0:00:18]} 26. Nd5 {[%clk 0:00:21.2]} 26...
f5 {[%clk 0:00:09.4]} 27. Ba3 {[%clk 0:00:07.2]} 27... Bxd5 {[%clk 0:00:06.4]}
28. Bxd5 {[%clk 0:00:08.1]} 28... Nc3 {[%clk 0:00:05.8]} 29. Bc4 {[%clk
0:00:07.3]} 29... Ne4 {[%clk 0:00:05.1]} 30. Kg2 {[%clk 0:00:06.8]} 30... Nd2
{[%clk 0:00:04.9]} 31. Bd3 {[%clk 0:00:06.1]} 31... Ne4 {[%clk 0:00:04.1]} 32.
f3 {[%clk 0:00:06]} 32... Nc3 {[%clk 0:00:03.8]} 33. Bb4 {[%clk 0:00:05.8]}
33... Nxe2 {[%clk 0:00:03.5]} 34. Bxe2 {[%clk 0:00:05.8]} 34... Rxe2+ {[%clk
0:00:03.4]} 35. Kf1 {[%clk 0:00:06.7]} 35... Re8 {[%clk 0:00:02.9]} 36. Ra7
{[%clk 0:00:07.1]} 36... Bd4 {[%clk 0:00:01.3]} 37. Rxa4 {[%clk 0:00:07.3]}
37... Kg7 {[%clk 0:00:01.5]} 38. Bd2 {[%clk 0:00:05]} 38... Kf6 {[%clk
0:00:01.2]} 39. Rxd4 {[%clk 0:00:04.9]} 1-0

[Event "Late-Titled-Tuesday-Blitz-June-04-2024"]
[Site "Chess.com"]
[Date "2024.06.04"]
[Round "4"]
[White "KingCyber19"]
[Black "rionelG"]
[Result "1-0"]
[WhiteElo "2620"]
[BlackElo "2321"]
[TimeControl "180+1"]
[EndTime "14:38:53 PDT"]
[Termination "KingCyber19 won by resignation"]

1. d4 {[%clk 0:03:00.9]} 1... d5 {[%clk 0:02:59.1]} 2. c4 {[%clk 0:03:00.4]}
2... e6 {[%clk 0:02:59.6]} 3. Nc3 {[%clk 0:02:58.4]} 3... Nf6 {[%clk 0:02:59.8]}
4. cxd5 {[%clk 0:02:58.3]} 4... exd5 {[%clk 0:02:59.7]} 5. Bg5 {[%clk 0:02:58]}
5... c6 {[%clk 0:03:00.2]} 6. e3 {[%clk 0:02:58.5]} 6... Be7 {[%clk 0:02:58.8]}
7. Bd3 {[%clk 0:02:58.9]} 7... h6 {[%clk 0:02:59.1]} 8. Bh4 {[%clk 0:02:58.7]}
8... O-O {[%clk 0:02:59.8]} 9. Qc2 {[%clk 0:02:55.9]} 9... Re8 {[%clk
0:02:58.2]} 10. Nge2 {[%clk 0:02:48.3]} 10... Ne4 {[%clk 0:02:54.5]} 11. Bxe7
{[%clk 0:02:44.9]} 11... Qxe7 {[%clk 0:02:55.4]} 12. O-O {[%clk 0:02:39.7]}
12... Nd7 {[%clk 0:02:54.2]} 13. Rae1 {[%clk 0:02:37]} 13... Qg5 {[%clk
0:02:31.3]} 14. Nxe4 {[%clk 0:02:25.4]} 14... dxe4 {[%clk 0:02:30.3]} 15. Bxe4
{[%clk 0:02:25.3]} 15... Nf6 {[%clk 0:02:30.7]} 16. Bf3 {[%clk 0:02:18]} 16...
Be6 {[%clk 0:02:23.5]} 17. Nf4 {[%clk 0:02:11.6]} 17... Bg4 {[%clk 0:02:06.5]}
18. Bxg4 {[%clk 0:02:10.9]} 18... Nxg4 {[%clk 0:02:07.4]} 19. h3 {[%clk
0:02:04.2]} 19... Nf6 {[%clk 0:02:04.5]} 20. Qb3 {[%clk 0:02:02.6]} 20... Rab8
{[%clk 0:02:02.2]} 21. Ne2 {[%clk 0:01:55.6]} 21... Re6 {[%clk 0:01:54.4]} 22.
Nf4 {[%clk 0:01:50]} 22... Ree8 {[%clk 0:01:49.1]} 23. Rc1 {[%clk 0:01:49.1]}
23... Ne4 {[%clk 0:01:41.6]} 24. Rfd1 {[%clk 0:01:32.8]} 24... Qh4 {[%clk
0:01:41.2]} 25. Qc2 {[%clk 0:01:25.2]} 25... g5 {[%clk 0:01:38.2]} 26. Nd3
{[%clk 0:01:14.1]} 26... Rbd8 {[%clk 0:01:17.5]} 27. Ne5 {[%clk 0:01:12.8]}
27... Kg7 {[%clk 0:01:09]} 28. Re1 {[%clk 0:00:52.6]} 28... Nd6 {[%clk
0:00:43.8]} 29. b4 {[%clk 0:00:44.5]} 29... Qh5 {[%clk 0:00:43.4]} 30. a4 {[%clk
0:00:43.9]} 30... f6 {[%clk 0:00:43.6]} 31. Nf3 {[%clk 0:00:38.3]} 31... a6
{[%clk 0:00:43.1]} 32. Qc5 {[%clk 0:00:35.6]} 32... Qg6 {[%clk 0:00:38.9]} 33.
Qb6 {[%clk 0:00:23.6]} 33... g4 {[%clk 0:00:35.8]} 34. hxg4 {[%clk 0:00:20.6]}
34... Qxg4 {[%clk 0:00:36.7]} 35. Red1 {[%clk 0:00:18.5]} 35... Kf7 {[%clk
0:00:31.5]} 36. d5 {[%clk 0:00:18.1]} 36... Rg8 {[%clk 0:00:30.9]} 37. Ne1
{[%clk 0:00:17.6]} 37... Nf5 {[%clk 0:00:22.2]} 38. Qc7+ {[%clk 0:00:15]} 38...
Kg6 {[%clk 0:00:19.6]} 39. Nd3 {[%clk 0:00:08.4]} 39... Rxd5 {[%clk 0:00:17.4]}
40. Nf4+ {[%clk 0:00:08.5]} 40... Kg5 {[%clk 0:00:06.9]} 41. Nxd5 {[%clk
0:00:08.8]} 41... cxd5 {[%clk 0:00:07.7]} 42. Rxd5 {[%clk 0:00:08.7]} 42... h5
{[%clk 0:00:06.9]} 43. Rcc5 {[%clk 0:00:07.2]} 43... Kh6 {[%clk 0:00:06.7]} 44.
Qf4+ {[%clk 0:00:06.4]} 44... Rg5 {[%clk 0:00:05.4]} 45. Qxg4 {[%clk 0:00:06.1]}
1-0